[Event "Titled Tuesday Blitz November 15 Late 2022"]
[White "Arnold, Ken"]
[Black "Bouget, Alexandre"]
[WhiteFideId "2056836"]
[BlackFideId "681318"]
[WhiteElo "2350"]
[BlackElo "2177"]
[Result "1-0"]
[Round "08"]
[TimeControl "180+1"]
[Date "2022.11.16"]
[WhiteClock "0:01:06"]
[BlackClock "0:00:36"]

1. d4 {[%clk 0:03:00]}  Nf6 {[%clk 0:02:49]} 2. c4 {[%clk 0:03:00]}  e6 {[%clk 0:02:50]} 3. Nf3 {[%clk 0:03:00]}  d5 {[%clk 0:02:48]} 4. cxd5 {[%clk 0:02:59]}  exd5 {[%clk 0:02:47]} 5. Nc3 {[%clk 0:02:59]}  Be7 {[%clk 0:02:46]} 6. Bf4 {[%clk 0:02:58]}  O-O {[%clk 0:02:47]} 7. e3 {[%clk 0:02:59]}  c6 {[%clk 0:02:47]} 8. h3 {[%clk 0:02:59]}  Re8 {[%clk 0:02:48]} 9. Bd3 {[%clk 0:02:59]}  Nbd7 {[%clk 0:02:48]} 10. O-O {[%clk 0:02:58]}  Nf8 {[%clk 0:02:48]} 11. Ne5 {[%clk 0:02:58]}  Ng6 {[%clk 0:02:47]} 12. Nxg6 {[%clk 0:02:57]}  hxg6 {[%clk 0:02:46]} 13. a3 {[%clk 0:02:57]}  Nh5 {[%clk 0:02:41]} 14. Bh2 {[%clk 0:02:56]}  Bd6 {[%clk 0:02:41]} 15. Qc2 {[%clk 0:02:52]}  Bxh2+ {[%clk 0:02:40]} 16. Kxh2 {[%clk 0:02:52]}  Qh4 {[%clk 0:02:40]} 17. Rae1 {[%clk 0:02:30]}  f5 {[%clk 0:02:33]} 18. g3 {[%clk 0:02:10]}  Qf6 {[%clk 0:02:27]} 19. Be2 {[%clk 0:02:05]}  Qd6 {[%clk 0:02:23]} 20. h4 {[%clk 0:01:56]}  Nf6 {[%clk 0:02:20]} 21. Kg2 {[%clk 0:01:51]}  Kf7 {[%clk 0:02:19]} 22. Bf3 {[%clk 0:01:50]}  Rh8 {[%clk 0:02:16]} 23. Rh1 {[%clk 0:01:49]}  Be6 {[%clk 0:02:15]} 24. Ne2 {[%clk 0:01:48]}  Rac8 {[%clk 0:02:05]} 25. b4 {[%clk 0:01:44]}  b6 {[%clk 0:02:05]} 26. Nf4 {[%clk 0:01:44]}  Ne4 {[%clk 0:02:02]} 27. Nd3 {[%clk 0:01:41]}  g5 {[%clk 0:01:54]} 28. Ne5+ {[%clk 0:01:38]}  Kf6 {[%clk 0:01:53]} 29. Bxe4 {[%clk 0:01:35]}  fxe4 {[%clk 0:01:51]} 30. hxg5+ {[%clk 0:01:35]}  Kxg5 {[%clk 0:01:51]} 31. f4+ {[%clk 0:01:28]}  exf3+ {[%clk 0:01:41]} 32. Nxf3+ {[%clk 0:01:26]}  Kf6 {[%clk 0:01:41]} 33. Ne5 {[%clk 0:01:20]}  Rxh1 {[%clk 0:01:24]} 34. Qg6+ {[%clk 0:01:18]}  Ke7 {[%clk 0:01:21]} 35. Qxg7+ {[%clk 0:01:18]}  Kd8 {[%clk 0:01:20]} 36. Rxh1 {[%clk 0:01:17]}  Bd7 {[%clk 0:01:03]} 37. Rh7 {[%clk 0:01:15]}  Be8 {[%clk 0:01:00]} 38. Qg5+ {[%clk 0:01:08]}  Qe7 {[%clk 0:00:36]} 39. Qxe7# {[%clk 0:01:06]} 1-0


[Site "https://www.chess.com"]

[Event "Titled Tuesday Blitz November 15 Late 2022"]
[White "Bach, Matthias"]
[Black "Reprintsev, Alexander"]
[WhiteFideId "4603168"]
[BlackFideId "14100541"]
[WhiteElo "2165"]
[BlackElo "2230"]
[Result "0-1"]
[Round "08"]
[TimeControl "180+1"]
[Date "2022.11.16"]
[WhiteClock "0:00:20"]
[BlackClock "0:01:04"]

1. d4 {[%clk 0:02:59]}  d5 {[%clk 0:02:52]} 2. c4 {[%clk 0:02:59]}  e5 {[%clk 0:02:51]} 3. Nf3 {[%clk 0:02:55]}  e4 {[%clk 0:02:47]} 4. Nfd2 {[%clk 0:02:55]}  c6 {[%clk 0:02:48]} 5. e3 {[%clk 0:02:53]}  Be6 {[%clk 0:02:28]} 6. Nc3 {[%clk 0:02:51]}  Nd7 {[%clk 0:02:28]} 7. Be2 {[%clk 0:02:47]}  Ngf6 {[%clk 0:02:26]} 8. f4 {[%clk 0:02:43]}  exf3 {[%clk 0:02:25]} 9. Bxf3 {[%clk 0:02:43]}  Bd6 {[%clk 0:02:26]} 10. cxd5 {[%clk 0:02:41]}  cxd5 {[%clk 0:02:24]} 11. O-O {[%clk 0:02:38]}  O-O {[%clk 0:02:24]} 12. e4 {[%clk 0:02:29]}  dxe4 {[%clk 0:02:21]} 13. Ndxe4 {[%clk 0:02:29]}  Nxe4 {[%clk 0:02:18]} 14. Nxe4 {[%clk 0:02:29]}  Be7 {[%clk 0:02:17]} 15. d5 {[%clk 0:02:26]}  Bf5 {[%clk 0:02:16]} 16. d6 {[%clk 0:02:21]}  Bh4 {[%clk 0:02:12]} 17. Qd5 {[%clk 0:02:15]}  Qb6+ {[%clk 0:02:06]} 18. Kh1 {[%clk 0:02:11]}  Be6 {[%clk 0:02:06]} 19. Qh5 {[%clk 0:02:05]}  Bd8 {[%clk 0:02:03]} 20. Bg5 {[%clk 0:01:58]}  Bxg5 {[%clk 0:01:59]} 21. Nxg5 {[%clk 0:01:57]}  Nf6 {[%clk 0:02:00]} 22. Qh4 {[%clk 0:01:56]}  h6 {[%clk 0:01:40]} 23. Nxe6 {[%clk 0:01:47]}  fxe6 {[%clk 0:01:41]} 24. Rad1 {[%clk 0:01:31]}  Rad8 {[%clk 0:01:38]} 25. Qg3 {[%clk 0:01:28]}  Qxb2 {[%clk 0:01:36]} 26. Qg6 {[%clk 0:01:21]}  e5 {[%clk 0:01:18]} 27. d7 {[%clk 0:01:09]}  Qxa2 {[%clk 0:01:11]} 28. Be4 {[%clk 0:01:00]}  Qf7 {[%clk 0:01:08]} 29. Rxf6 {[%clk 0:00:55]}  Qxf6 {[%clk 0:01:07]} 30. Qh7+ {[%clk 0:00:54]}  Kf7 {[%clk 0:01:07]} 31. h3 {[%clk 0:00:45]}  Rh8 {[%clk 0:01:05]} 32. Bd5+ {[%clk 0:00:44]}  Ke7 {[%clk 0:01:05]} 33. Qe4 {[%clk 0:00:29]}  Rxd7 {[%clk 0:01:05]} 34. Re1 {[%clk 0:00:24]}  Rhd8 {[%clk 0:01:04]} 35. Bxb7 {[%clk 0:00:23]}  Rd1 {[%clk 0:01:04]} 36. Qb4+ {[%clk 0:00:20]}  Qd6 {[%clk 0:01:04]} 0-1


[Site "https://www.chess.com"]

[Event "Titled Tuesday Blitz November 15 Late 2022"]
[White "Baskakov, Egor"]
[Black "Estrada Nieto, Julian"]
[WhiteFideId "24197866"]
[BlackFideId "5101018"]
[WhiteElo "2211"]
[BlackElo "2221"]
[Result "0-1"]
[Round "08"]
[TimeControl "180+1"]
[Date "2022.11.15"]
[WhiteClock "0:01:32"]
[BlackClock "0:00:09"]

1. e4 {[%clk 0:03:00]}  e5 {[%clk 0:02:53]} 2. Nc3 {[%clk 0:03:00]}  Nf6 {[%clk 0:02:51]} 3. g3 {[%clk 0:03:01]}  d5 {[%clk 0:02:51]} 4. exd5 {[%clk 0:03:02]}  Nxd5 {[%clk 0:02:51]} 5. Bg2 {[%clk 0:03:02]}  Nxc3 {[%clk 0:02:52]} 6. bxc3 {[%clk 0:03:03]}  Bc5 {[%clk 0:02:50]} 7. d3 {[%clk 0:03:03]}  Nc6 {[%clk 0:02:50]} 8. Ne2 {[%clk 0:03:04]}  O-O {[%clk 0:02:51]} 9. O-O {[%clk 0:03:04]}  Be6 {[%clk 0:02:39]} 10. c4 {[%clk 0:03:02]}  Qd7 {[%clk 0:02:37]} 11. Be3 {[%clk 0:03:03]}  Bxe3 {[%clk 0:02:33]} 12. fxe3 {[%clk 0:03:04]}  Bh3 {[%clk 0:02:33]} 13. Bxh3 {[%clk 0:02:58]}  Qxh3 {[%clk 0:02:32]} 14. Rb1 {[%clk 0:02:59]}  b6 {[%clk 0:02:30]} 15. Nc3 {[%clk 0:02:58]}  Ne7 {[%clk 0:02:24]} 16. Rb5 {[%clk 0:02:55]}  f6 {[%clk 0:02:17]} 17. a4 {[%clk 0:02:56]}  c6 {[%clk 0:02:15]} 18. Rb1 {[%clk 0:02:55]}  Rab8 {[%clk 0:02:12]} 19. Qf3 {[%clk 0:02:55]}  Qe6 {[%clk 0:02:03]} 20. a5 {[%clk 0:02:38]}  bxa5 {[%clk 0:01:54]} 21. Ra1 {[%clk 0:02:38]}  Rb2 {[%clk 0:01:48]} 22. Rf2 {[%clk 0:02:37]}  f5 {[%clk 0:01:37]} 23. Rxa5 {[%clk 0:02:33]}  e4 {[%clk 0:01:30]} 24. Nxe4 {[%clk 0:02:32]}  Rb1+ {[%clk 0:01:22]} 25. Kg2 {[%clk 0:02:32]}  h6 {[%clk 0:01:09]} 26. Rxa7 {[%clk 0:02:27]}  Ng6 {[%clk 0:01:07]} 27. Nc5 {[%clk 0:02:11]}  Qf6 {[%clk 0:00:47]} 28. d4 {[%clk 0:02:10]}  Qg5 {[%clk 0:00:46]} 29. Ne6 {[%clk 0:02:10]}  Nh4+ {[%clk 0:00:45]} 30. Kh3 {[%clk 0:02:10]}  Nxf3 {[%clk 0:00:44]} 31. Nxg5 {[%clk 0:02:10]}  Nxg5+ {[%clk 0:00:44]} 32. Kg2 {[%clk 0:02:11]}  Ne4 {[%clk 0:00:40]} 33. Re2 {[%clk 0:02:11]}  Rb2 {[%clk 0:00:33]} 34. Rc7 {[%clk 0:02:09]}  Ra8 {[%clk 0:00:30]} 35. Rxc6 {[%clk 0:02:08]}  Raa2 {[%clk 0:00:30]} 36. c5 {[%clk 0:02:05]}  Rxc2 {[%clk 0:00:29]} 37. Rxc2 {[%clk 0:02:06]}  Rxc2+ {[%clk 0:00:29]} 38. Kf1 {[%clk 0:02:03]}  Rxh2 {[%clk 0:00:19]} 39. d5 {[%clk 0:02:00]}  Nxg3+ {[%clk 0:00:18]} 40. Kg1 {[%clk 0:01:54]}  Rd2 {[%clk 0:00:15]} 41. d6 {[%clk 0:01:54]}  h5 {[%clk 0:00:15]} 42. Rc8+ {[%clk 0:01:36]}  Kh7 {[%clk 0:00:14]} 43. Ra8 {[%clk 0:01:32]}  h4 {[%clk 0:00:14]} 44. Ra4 {[%clk 0:01:33]}  g5 {[%clk 0:00:09]} 45. Rd4 {[%clk 0:01:33]}  Ne2+ {[%clk 0:00:09]} 46. Kf1 {[%clk 0:01:33]}  Nxd4 {[%clk 0:00:10]} 47. exd4 {[%clk 0:01:31]}  Rxd4 {[%clk 0:00:09]} 48. Ke2 {[%clk 0:01:31]}  h3 {[%clk 0:00:09]} 49. Ke3 {[%clk 0:01:32]}  Rd1 {[%clk 0:00:09]} 0-1


[Site "https://www.chess.com"]

[Event "Titled Tuesday Blitz November 15 Late 2022"]
[White "Bluebaum, Matthias"]
[Black "Riehle, Marco"]
[WhiteFideId "24651516"]
[BlackFideId "12904392"]
[WhiteElo "2633"]
[BlackElo "2462"]
[Result "1-0"]
[Round "08"]
[TimeControl "180+1"]
[Date "2022.11.15"]
[WhiteClock "0:01:57"]
[BlackClock "0:02:12"]

1. d4 {[%clk 0:03:00]}  d5 {[%clk 0:02:59]} 2. c4 {[%clk 0:03:01]}  e6 {[%clk 0:02:59]} 3. Nf3 {[%clk 0:03:02]}  Nf6 {[%clk 0:02:59]} 4. Nc3 {[%clk 0:03:02]}  c5 {[%clk 0:02:59]} 5. cxd5 {[%clk 0:03:02]}  Nxd5 {[%clk 0:03:00]} 6. g3 {[%clk 0:03:01]}  Nc6 {[%clk 0:02:56]} 7. Bg2 {[%clk 0:02:56]}  cxd4 {[%clk 0:02:51]} 8. Nxd4 {[%clk 0:02:56]}  Nxc3 {[%clk 0:02:51]} 9. bxc3 {[%clk 0:02:57]}  Nxd4 {[%clk 0:02:45]} 10. Qxd4 {[%clk 0:02:57]}  Qxd4 {[%clk 0:02:43]} 11. cxd4 {[%clk 0:02:58]}  Bb4+ {[%clk 0:02:43]} 12. Bd2 {[%clk 0:02:58]}  Bxd2+ {[%clk 0:02:44]} 13. Kxd2 {[%clk 0:02:59]}  Rb8 {[%clk 0:02:39]} 14. Rhc1 {[%clk 0:02:55]}  Kd8 {[%clk 0:02:37]} 15. a4 {[%clk 0:02:53]}  Re8 {[%clk 0:02:35]} 16. a5 {[%clk 0:02:43]}  Re7 {[%clk 0:02:35]} 17. Rc3 {[%clk 0:02:31]}  Rc7 {[%clk 0:02:33]} 18. Rb3 {[%clk 0:02:32]}  Bd7 {[%clk 0:02:30]} 19. Rab1 {[%clk 0:02:31]}  Kc8 {[%clk 0:02:30]} 20. e4 {[%clk 0:02:08]}  Bc6 {[%clk 0:02:20]} 21. d5 {[%clk 0:02:06]}  exd5 {[%clk 0:02:16]} 22. exd5 {[%clk 0:02:07]}  Be8 {[%clk 0:02:15]} 23. d6 {[%clk 0:02:02]}  Rd7 {[%clk 0:02:15]} 24. Bh3 {[%clk 0:02:02]}  g6 {[%clk 0:02:12]} 25. Rc1+ {[%clk 0:01:56]}  Kd8 {[%clk 0:02:12]} 26. Bxd7 {[%clk 0:01:57]}  Bxd7 {[%clk 0:02:12]} 27. Rc7 {[%clk 0:01:57]} 1-0


[Site "https://www.chess.com"]

[Event "Titled Tuesday Blitz November 15 Late 2022"]
[White "Dudzinski, Pawel"]
[Black "Pino Perez, Lazaro"]
[WhiteFideId "1117890"]
[BlackFideId "3517055"]
[WhiteElo "2086"]
[BlackElo "2170"]
[Result "1-0"]
[Round "08"]
[TimeControl "180+1"]
[Date "2022.11.16"]
[WhiteClock "0:02:54"]
[BlackClock "0:02:29"]

1. e4 {[%clk 0:03:00]}  c5 {[%clk 0:02:59]} 2. Nc3 {[%clk 0:03:00]}  g6 {[%clk 0:03:00]} 3. g3 {[%clk 0:03:00]}  Bg7 {[%clk 0:02:59]} 4. Bg2 {[%clk 0:03:01]}  Nc6 {[%clk 0:02:59]} 5. d3 {[%clk 0:03:01]}  d6 {[%clk 0:02:59]} 6. Be3 {[%clk 0:03:02]}  e5 {[%clk 0:02:59]} 7. Qd2 {[%clk 0:03:02]}  Nge7 {[%clk 0:02:58]} 8. Bh6 {[%clk 0:03:01]}  O-O {[%clk 0:02:56]} 9. h4 {[%clk 0:03:01]}  f6 {[%clk 0:02:54]} 10. Bxg7 {[%clk 0:03:02]}  Kxg7 {[%clk 0:02:54]} 11. h5 {[%clk 0:03:03]}  g5 {[%clk 0:02:54]} 12. h6+ {[%clk 0:03:03]}  Kh8 {[%clk 0:02:54]} 13. f4 {[%clk 0:03:04]}  gxf4 {[%clk 0:02:35]} 14. gxf4 {[%clk 0:03:05]}  Ng6 {[%clk 0:02:32]} 15. Nd5 {[%clk 0:02:58]}  Be6 {[%clk 0:02:29]} 16. f5 {[%clk 0:02:54]} 1-0


[Site "https://www.chess.com"]

[Event "Titled Tuesday Blitz November 15 Late 2022"]
[White "Garcia Pantoja, Roberto"]
[Black "Milchev, Nikolay"]
[WhiteFideId "3509265"]
[BlackFideId "2906090"]
[WhiteElo "2785"]
[BlackElo "2547"]
[Result "1-0"]
[Round "08"]
[TimeControl "180+1"]
[Date "2022.11.16"]
[WhiteClock "0:02:32"]
[BlackClock "0:02:18"]

1. e4 {[%clk 0:03:00]}  Nf6 {[%clk 0:03:00]} 2. e5 {[%clk 0:03:00]}  Nd5 {[%clk 0:03:00]} 3. d4 {[%clk 0:03:01]}  d6 {[%clk 0:03:00]} 4. c4 {[%clk 0:03:01]}  Nb6 {[%clk 0:03:01]} 5. f4 {[%clk 0:03:02]}  g6 {[%clk 0:03:01]} 6. Nc3 {[%clk 0:03:00]}  Bg7 {[%clk 0:03:01]} 7. Be3 {[%clk 0:03:01]}  O-O {[%clk 0:03:01]} 8. c5 {[%clk 0:03:01]}  dxc5 {[%clk 0:03:00]} 9. dxc5 {[%clk 0:03:01]}  Qxd1+ {[%clk 0:02:58]} 10. Rxd1 {[%clk 0:03:00]}  N6d7 {[%clk 0:02:58]} 11. Nd5 {[%clk 0:02:57]}  Na6 {[%clk 0:02:54]} 12. Nxe7+ {[%clk 0:02:56]}  Kh8 {[%clk 0:02:53]} 13. Nxc8 {[%clk 0:02:56]}  Raxc8 {[%clk 0:02:51]} 14. Rxd7 {[%clk 0:02:54]}  Nb4 {[%clk 0:02:27]} 15. Nf3 {[%clk 0:02:42]}  Rfd8 {[%clk 0:02:26]} 16. Rxd8+ {[%clk 0:02:40]}  Rxd8 {[%clk 0:02:27]} 17. Bc4 {[%clk 0:02:38]}  Nc2+ {[%clk 0:02:26]} 18. Kf2 {[%clk 0:02:38]}  Nxe3 {[%clk 0:02:27]} 19. Kxe3 {[%clk 0:02:39]}  f6 {[%clk 0:02:27]} 20. b4 {[%clk 0:02:36]}  b6 {[%clk 0:02:24]} 21. c6 {[%clk 0:02:36]}  fxe5 {[%clk 0:02:19]} 22. Nxe5 {[%clk 0:02:34]}  Re8 {[%clk 0:02:19]} 23. Ke4 {[%clk 0:02:33]}  Bf6 {[%clk 0:02:18]} 24. Rd1 {[%clk 0:02:32]} 1-0


[Site "https://www.chess.com"]

[Event "Titled Tuesday Blitz November 15 Late 2022"]
[White "Garcia Ramos, Daniel"]
[Black "Klenburg, Michael"]
[WhiteFideId "32010311"]
[BlackFideId "14102072"]
[WhiteElo "2357"]
[BlackElo "2405"]
[Result "0-1"]
[Round "08"]
[TimeControl "180+1"]
[Date "2022.11.16"]
[WhiteClock "0:00:09"]
[BlackClock "0:00:16"]

1. e4 {[%clk 0:02:56]}  d6 {[%clk 0:02:59]} 2. d4 {[%clk 0:02:56]}  Nf6 {[%clk 0:03:00]} 3. Nc3 {[%clk 0:02:56]}  g6 {[%clk 0:02:59]} 4. Be3 {[%clk 0:02:57]}  c6 {[%clk 0:02:59]} 5. Qd2 {[%clk 0:02:57]}  Nbd7 {[%clk 0:02:59]} 6. O-O-O {[%clk 0:02:57]}  Qa5 {[%clk 0:02:57]} 7. Kb1 {[%clk 0:02:57]}  b5 {[%clk 0:02:56]} 8. Bd3 {[%clk 0:02:49]}  Rb8 {[%clk 0:02:48]} 9. f4 {[%clk 0:02:49]}  Ng4 {[%clk 0:02:46]} 10. Nf3 {[%clk 0:02:45]}  Nxe3 {[%clk 0:02:46]} 11. Qxe3 {[%clk 0:02:46]}  Nb6 {[%clk 0:02:43]} 12. e5 {[%clk 0:02:44]}  d5 {[%clk 0:02:43]} 13. Nd2 {[%clk 0:02:36]}  Nc4 {[%clk 0:02:41]} 14. Qe1 {[%clk 0:02:28]}  e6 {[%clk 0:02:33]} 15. Nb3 {[%clk 0:02:28]}  Qb6 {[%clk 0:02:33]} 16. g4 {[%clk 0:02:26]}  a5 {[%clk 0:02:33]} 17. f5 {[%clk 0:02:25]}  a4 {[%clk 0:02:32]} 18. Nc1 {[%clk 0:02:21]}  Qa5 {[%clk 0:02:18]} 19. Rf1 {[%clk 0:02:10]}  Qb4 {[%clk 0:02:12]} 20. Bxc4 {[%clk 0:01:58]}  bxc4 {[%clk 0:02:12]} 21. b3 {[%clk 0:01:56]}  axb3 {[%clk 0:02:11]} 22. cxb3 {[%clk 0:01:54]}  Bh6 {[%clk 0:02:01]} 23. fxg6 {[%clk 0:01:29]}  hxg6 {[%clk 0:01:52]} 24. N3e2 {[%clk 0:00:45]}  Qxe1 {[%clk 0:01:28]} 25. Rdxe1 {[%clk 0:00:42]}  Ba6 {[%clk 0:01:16]} 26. Rf2 {[%clk 0:00:37]}  Be3 {[%clk 0:01:00]} 27. Rg2 {[%clk 0:00:30]}  c5 {[%clk 0:00:40]} 28. dxc5 {[%clk 0:00:26]}  Bxc5 {[%clk 0:00:40]} 29. Kc2 {[%clk 0:00:21]}  Rh3 {[%clk 0:00:34]} 30. Nf4 {[%clk 0:00:19]}  Rf3 {[%clk 0:00:32]} 31. Nce2 {[%clk 0:00:15]}  cxb3+ {[%clk 0:00:31]} 32. axb3 {[%clk 0:00:14]}  Rfxb3 {[%clk 0:00:29]} 33. Rg3 {[%clk 0:00:08]}  Rb2+ {[%clk 0:00:24]} 34. Kc1 {[%clk 0:00:09]}  Rb1+ {[%clk 0:00:22]} 35. Kd2 {[%clk 0:00:09]}  R8b2+ {[%clk 0:00:18]} 36. Kc3 {[%clk 0:00:09]}  Bb4+ {[%clk 0:00:16]} 37. Kd4 {[%clk 0:00:09]}  Bxe1 {[%clk 0:00:16]} 0-1


[Site "https://www.chess.com"]

[Event "Titled Tuesday Blitz November 15 Late 2022"]
[White "Gardezi, Arsal"]
[Black "Przybylski, Wojciech"]
[WhiteFideId "30949521"]
[BlackFideId "1117599"]
[WhiteElo "1906"]
[BlackElo "2221"]
[Result "0-1"]
[Round "08"]
[TimeControl "180+1"]
[Date "2022.11.16"]
[WhiteClock "0:01:07"]
[BlackClock "0:01:26"]

1. d4 {[%clk 0:02:49]}  Nf6 {[%clk 0:02:57]} 2. c4 {[%clk 0:02:48]}  e6 {[%clk 0:02:57]} 3. Nc3 {[%clk 0:02:48]}  Bb4 {[%clk 0:02:56]} 4. Qc2 {[%clk 0:02:46]}  O-O {[%clk 0:02:54]} 5. e4 {[%clk 0:02:43]}  d5 {[%clk 0:02:54]} 6. cxd5 {[%clk 0:02:42]}  exd5 {[%clk 0:02:53]} 7. e5 {[%clk 0:02:42]}  Ne4 {[%clk 0:02:52]} 8. Nf3 {[%clk 0:02:43]}  Bf5 {[%clk 0:02:45]} 9. Bd3 {[%clk 0:02:43]}  c5 {[%clk 0:02:43]} 10. O-O {[%clk 0:02:35]}  Nc6 {[%clk 0:02:42]} 11. Nxe4 {[%clk 0:02:26]}  dxe4 {[%clk 0:02:39]} 12. Bxe4 {[%clk 0:02:27]}  Nxd4 {[%clk 0:02:37]} 13. Nxd4 {[%clk 0:02:15]}  Bxe4 {[%clk 0:02:36]} 14. Qxe4 {[%clk 0:02:14]}  Qxd4 {[%clk 0:02:30]} 15. Qxb7 {[%clk 0:02:14]}  Qxe5 {[%clk 0:02:22]} 16. a3 {[%clk 0:02:09]}  Ba5 {[%clk 0:02:21]} 17. b4 {[%clk 0:02:08]}  Qxa1 {[%clk 0:02:10]} 18. bxa5 {[%clk 0:02:08]}  Qc3 {[%clk 0:02:03]} 19. a6 {[%clk 0:02:05]}  c4 {[%clk 0:02:01]} 20. Be3 {[%clk 0:01:57]}  Rfb8 {[%clk 0:01:59]} 21. Qc6 {[%clk 0:01:56]}  Rc8 {[%clk 0:01:58]} 22. Qd5 {[%clk 0:01:51]}  Qxa3 {[%clk 0:01:55]} 23. g3 {[%clk 0:01:44]}  Qxa6 {[%clk 0:01:52]} 24. Bd4 {[%clk 0:01:40]}  Qe6 {[%clk 0:01:45]} 25. Qg5 {[%clk 0:01:38]}  f6 {[%clk 0:01:45]} 26. Qf4 {[%clk 0:01:37]}  c3 {[%clk 0:01:43]} 27. Rc1 {[%clk 0:01:35]}  c2 {[%clk 0:01:43]} 28. Qf3 {[%clk 0:01:33]}  Qc4 {[%clk 0:01:35]} 29. Be3 {[%clk 0:01:31]}  a5 {[%clk 0:01:34]} 30. Kg2 {[%clk 0:01:25]}  a4 {[%clk 0:01:34]} 31. Ra1 {[%clk 0:01:12]}  a3 {[%clk 0:01:32]} 32. Qf5 {[%clk 0:01:10]}  a2 {[%clk 0:01:28]} 33. Qf3 {[%clk 0:01:07]}  Qc6 {[%clk 0:01:26]} 0-1


[Site "https://www.chess.com"]

[Event "Titled Tuesday Blitz November 15 Late 2022"]
[White "Ghazarian, Kirk"]
[Black "Ivic, Velimir"]
[WhiteFideId "30908604"]
[BlackFideId "950122"]
[WhiteElo "2346"]
[BlackElo "2625"]
[Result "1-0"]
[Round "08"]
[TimeControl "180+1"]
[Date "2022.11.15"]
[WhiteClock "0:00:01"]
[BlackClock "0:00:04"]

1. d4 {[%clk 0:03:00]}  g6 {[%clk 0:02:57]} 2. Nc3 {[%clk 0:02:58]}  d5 {[%clk 0:02:56]} 3. Bf4 {[%clk 0:02:58]}  Nf6 {[%clk 0:02:56]} 4. e3 {[%clk 0:02:59]}  Bg7 {[%clk 0:02:57]} 5. h4 {[%clk 0:02:59]}  h5 {[%clk 0:02:57]} 6. Nf3 {[%clk 0:02:58]}  O-O {[%clk 0:02:56]} 7. Bd3 {[%clk 0:02:57]}  c5 {[%clk 0:02:56]} 8. Ne5 {[%clk 0:02:55]}  Nc6 {[%clk 0:02:57]} 9. dxc5 {[%clk 0:02:47]}  Qa5 {[%clk 0:02:35]} 10. O-O {[%clk 0:02:47]}  Qxc5 {[%clk 0:02:32]} 11. Ne2 {[%clk 0:02:38]}  Ng4 {[%clk 0:02:26]} 12. Nxg4 {[%clk 0:02:21]}  Bxg4 {[%clk 0:02:27]} 13. c3 {[%clk 0:02:20]}  e5 {[%clk 0:02:22]} 14. Bg3 {[%clk 0:02:19]}  Rad8 {[%clk 0:02:19]} 15. f3 {[%clk 0:02:11]}  Be6 {[%clk 0:02:02]} 16. Bf2 {[%clk 0:02:11]}  e4 {[%clk 0:02:02]} 17. Bc2 {[%clk 0:02:11]}  exf3 {[%clk 0:02:02]} 18. gxf3 {[%clk 0:02:12]}  Bh3 {[%clk 0:02:02]} 19. Re1 {[%clk 0:02:12]}  Qe7 {[%clk 0:02:00]} 20. Nf4 {[%clk 0:02:09]}  Bc8 {[%clk 0:01:57]} 21. Qe2 {[%clk 0:02:02]}  Ne5 {[%clk 0:01:50]} 22. Bg3 {[%clk 0:02:00]}  Bf6 {[%clk 0:01:44]} 23. Ng2 {[%clk 0:01:56]}  Bh3 {[%clk 0:01:35]} 24. Qf2 {[%clk 0:01:52]}  Rfe8 {[%clk 0:01:32]} 25. Nf4 {[%clk 0:01:41]}  Be6 {[%clk 0:01:31]} 26. Kg2 {[%clk 0:01:32]}  Nc4 {[%clk 0:01:20]} 27. Bd3 {[%clk 0:01:28]}  Nd6 {[%clk 0:01:17]} 28. Rad1 {[%clk 0:01:24]}  Qd7 {[%clk 0:01:13]} 29. Bc2 {[%clk 0:01:15]}  Qc6 {[%clk 0:01:14]} 30. Kg1 {[%clk 0:01:10]}  Nc4 {[%clk 0:01:14]} 31. Bd3 {[%clk 0:01:07]}  Ne5 {[%clk 0:01:14]} 32. Bf1 {[%clk 0:01:01]}  d4 {[%clk 0:01:10]} 33. Bg2 {[%clk 0:00:41]}  dxe3 {[%clk 0:01:04]} 34. Qxe3 {[%clk 0:00:37]}  Rxd1 {[%clk 0:01:01]} 35. Rxd1 {[%clk 0:00:38]}  Bxa2 {[%clk 0:01:01]} 36. Qxa7 {[%clk 0:00:29]}  Bb3 {[%clk 0:00:46]} 37. Rf1 {[%clk 0:00:20]}  Bc4 {[%clk 0:00:46]} 38. Rf2 {[%clk 0:00:16]}  b6 {[%clk 0:00:46]} 39. Qa1 {[%clk 0:00:13]}  Be7 {[%clk 0:00:39]} 40. Kh2 {[%clk 0:00:11]}  Bc5 {[%clk 0:00:39]} 41. Rd2 {[%clk 0:00:10]}  Nxf3+ {[%clk 0:00:38]} 42. Kh1 {[%clk 0:00:06]}  Qe4 {[%clk 0:00:25]} 43. Qd1 {[%clk 0:00:05]}  Nxd2 {[%clk 0:00:23]} 44. Bxe4 {[%clk 0:00:06]}  Nxe4 {[%clk 0:00:24]} 45. Qf3 {[%clk 0:00:03]}  Nf6 {[%clk 0:00:18]} 46. Kg2 {[%clk 0:00:02]}  Ng4 {[%clk 0:00:18]} 47. Qc6 {[%clk 0:00:02]}  Ne3+ {[%clk 0:00:17]} 48. Kf3 {[%clk 0:00:02]}  Re7 {[%clk 0:00:15]} 49. Bf2 {[%clk 0:00:02]}  Ng4 {[%clk 0:00:11]} 50. Qc8+ {[%clk 0:00:03]}  Kg7 {[%clk 0:00:11]} 51. Bxc5 {[%clk 0:00:03]}  bxc5 {[%clk 0:00:10]} 52. Qxc5 {[%clk 0:00:04]}  Re1 {[%clk 0:00:10]} 53. Qd4+ {[%clk 0:00:03]}  Ne5+ {[%clk 0:00:10]} 54. Kf2 {[%clk 0:00:03]}  Kh7 {[%clk 0:00:05]} 55. Kxe1 {[%clk 0:00:04]}  Nf3+ {[%clk 0:00:06]} 56. Kf2 {[%clk 0:00:05]}  Nxd4 {[%clk 0:00:07]} 57. cxd4 {[%clk 0:00:05]}  f6 {[%clk 0:00:07]} 58. Ke3 {[%clk 0:00:06]}  Kh6 {[%clk 0:00:06]} 59. Ng2 {[%clk 0:00:04]}  g5 {[%clk 0:00:06]} 60. Ke4 {[%clk 0:00:04]}  Bf1 {[%clk 0:00:05]} 61. Ne3 {[%clk 0:00:04]}  Bb5 {[%clk 0:00:05]} 62. hxg5+ {[%clk 0:00:02]}  fxg5 {[%clk 0:00:04]} 63. d5 {[%clk 0:00:02]}  Kg6 {[%clk 0:00:04]} 64. d6 {[%clk 0:00:01]} 1-0


[Site "https://www.chess.com"]